fUSD/lending_fUSD_20250302
["ID","MTS","AMOUNT","RATE_DAILY","PERIOD"]
[355055029,1740883838019,-500.0,0.00024931,2]
[355055030,1740883838028,-500.0,0.00024931,2]
[355055031,1740883838038,-500.0,0.00024973,2]
[355055032,1740883838047,-155.51728672,0.00024973,2]
[355055033,1740883838057,-922.94933212,0.00024983,2]
[355055034,1740883838067,-222.69,0.00025003,2]
[355055035,1740883838076,-500.0,0.00025102,2]
[355055036,1740883838086,-500.0,0.00025103,2]
[355055037,1740883838095,-491.05998814,0.00025103,2]
[355055038,1740883838107,-500.0,0.00025104,2]
[355055039,1740883838117,-500.0,0.00025104,2]
[355055040,1740883838127,-500.0,0.00025104,2]
[355055041,1740883838137,-500.0,0.00025104,2]
[355055042,1740883838147,-500.0,0.00025104,2]
[355055043,1740883838156,-500.0,0.00025104,2]
[355055044,1740883838166,-500.0,0.00025104,2]
[355055045,1740883838176,-500.0,0.00025104,2]
[355055047,1740883838185,-500.0,0.00025104,2]
[355055048,1740883838196,-500.0,0.00025104,2]
[355055049,1740883838205,-500.0,0.00025104,2]
[355055050,1740883838214,-500.0,0.00025104,2]
[355055051,1740883838223,-500.0,0.00025104,2]
[355055052,1740883838233,-500.0,0.00025104,2]
[355055053,1740883838243,-500.0,0.00025104,2]
[355055054,1740883838252,-500.0,0.00025104,2]
[355055055,1740883838261,-500.0,0.00025104,2]
[355055056,1740883838270,-500.0,0.00025104,2]
[355055057,1740883838280,-500.0,0.00025104,2]
[355055058,1740883838289,-500.0,0.00025104,2]
[355055060,1740883838298,-500.0,0.00025104,2]
[355055062,1740883838307,-500.0,0.00025104,2]
[355055064,1740883838317,-500.0,0.00025104,2]
[355055066,1740883838326,-500.0,0.00025104,2]
[355055068,1740883838336,-500.0,0.00025104,2]
[355055070,1740883838345,-500.0,0.00025104,2]
[355055072,1740883838357,-560.0,0.00025104,2]
[355055074,1740883838366,-500.0,0.00025104,2]
[355055076,1740883838375,-500.0,0.00025104,2]
[355055078,1740883838385,-500.0,0.00025104,2]
[355055080,1740883838395,-500.0,0.00025104,2]
[355055082,1740883838404,-500.0,0.00025104,2]
[355055084,1740883838413,-500.0,0.00025104,2]
[355055086,1740883838422,-500.0,0.00025104,2]
[355055088,1740883838431,-500.0,0.00025104,2]
[355055090,1740883838441,-500.0,0.00025104,2]
[355055092,1740883838451,-500.0,0.00025104,2]
[355055094,1740883838460,-500.0,0.00025104,2]
[355055096,1740883838469,-500.0,0.00025104,2]
[355055098,1740883838479,-500.0,0.00025104,2]
[355055100,1740883838488,-500.0,0.00025104,2]
[355055102,1740883838499,-500.0,0.00025104,2]
[355055104,1740883838511,-500.0,0.00025104,2]
[355055106,1740883838521,-500.0,0.00025104,2]
[355055108,1740883838531,-500.0,0.00025104,2]
[355055110,1740883838540,-500.0,0.00025104,2]
[355055112,1740883838551,-500.0,0.00025104,2]
[355055114,1740883838560,-500.0,0.00025104,2]
[355055116,1740883838569,-500.0,0.00025104,2]
[355055118,1740883838579,-500.0,0.00025104,2]
[355055120,1740883838589,-500.0,0.00025104,2]
[355055122,1740883838599,-500.0,0.00025104,2]
[355055124,1740883838610,-500.0,0.00025104,2]
[355055126,1740883838620,-500.0,0.00025104,2]
[355055128,1740883838629,-500.0,0.00025104,2]
[355055130,1740883838638,-500.0,0.00025104,2]
[355055132,1740883838648,-500.0,0.00025104,2]
[355055134,1740883838657,-500.0,0.00025104,2]
[355055136,1740883838666,-500.0,0.00025104,2]
[355055138,1740883838676,-500.0,0.00025104,2]
[355055140,1740883838686,-500.0,0.00025104,2]
[355055142,1740883838695,-500.0,0.00025104,2]
[355055144,1740883838704,-500.0,0.00025104,2]
[355055146,1740883838714,-500.0,0.00025104,2]
[355055148,1740883838724,-500.0,0.00025104,2]
[355055150,1740883838733,-500.0,0.00025104,2]
[355055152,1740883838743,-500.0,0.00025104,2]
[355055154,1740883838753,-500.0,0.00025104,2]
[355055156,1740883838763,-500.0,0.00025104,2]
[355055158,1740883838772,-500.0,0.00025104,2]
[355055160,1740883838782,-500.0,0.00025104,2]
[355055162,1740883838792,-500.0,0.00025104,2]
[355055164,1740883838801,-500.0,0.00025104,2]
[355055166,1740883838811,-500.0,0.00025104,2]
[355055168,1740883838820,-500.0,0.00025104,2]
[355055170,1740883838830,-500.0,0.00025104,2]
[355055172,1740883838839,-500.0,0.00025104,2]
[355055174,1740883838849,-500.0,0.00025104,2]
[355055176,1740883838859,-500.0,0.00025104,2]
[355055178,1740883838868,-500.0,0.00025104,2]
[355055180,1740883838878,-500.0,0.00025104,2]
[355055182,1740883838887,-500.0,0.00025104,2]
[355055184,1740883838897,-500.0,0.00025104,2]
[355055186,1740883838907,-500.0,0.00025104,2]
[355055188,1740883838916,-500.0,0.00025104,2]
[355055190,1740883838925,-500.0,0.00025104,2]
[355055192,1740883838935,-500.0,0.00025104,2]
[355055194,1740883838945,-511.0,0.00025104,2]
[355055196,1740883838954,-500.0,0.00025104,2]
[355055198,1740883838964,-500.0,0.00025104,2]
[355055200,1740883838974,-500.0,0.00025104,2]
[355055202,1740883838983,-500.0,0.00025104,2]
[355055204,1740883838993,-500.0,0.00025104,2]
[355055206,1740883839002,-500.0,0.00025104,2]
[355055208,1740883839011,-500.0,0.00025104,2]
[355055210,1740883839020,-500.0,0.00025104,2]
[355055212,1740883839029,-500.0,0.00025104,2]
[355055214,1740883839038,-719.0,0.00025104,2]
[355055216,1740883839048,-36918.2047,0.00025104,2]
[355055218,1740883839057,-222.69,0.00025134,2]
[355055220,1740883839066,-309.09833242,0.00025199,10]
[355055222,1740883839076,-500.0,0.000252,2]
[355055224,1740883839085,-500.0,0.000252,2]
[355055226,1740883839095,-500.0,0.000252,2]
[355055228,1740883839106,-354.24695476,0.000252,2]
[355055230,1740883839115,-500.0,0.000252,2]
[355055232,1740883839125,-500.0,0.000252,2]
[355055234,1740883839135,-500.0,0.000252,2]
[355055236,1740883839144,-500.0,0.000252,2]
[355055238,1740883839154,-500.0,0.000252,2]
[355055240,1740883839163,-500.0,0.000252,2]
[355055242,1740883839173,-500.0,0.000252,2]
[355055244,1740883839182,-500.0,0.000252,2]
[355055246,1740883839192,-1335.75,0.000252,2]
[355055248,1740883839203,-500.0,0.000252,2]
[355055250,1740883839213,-1911.89,0.000252,2]
[355055252,1740883839222,-500.0,0.000252,2]
[355055254,1740883839231,-500.0,0.000252,2]
[355055256,1740883839242,-500.0,0.000252,2]
[355055258,1740883839251,-500.0,0.000252,2]
[355055260,1740883839261,-500.0,0.000252,2]
[355055262,1740883839270,-616.50707444,0.000252,2]
[355055264,1740883839280,-500.0,0.000252,2]
[355055266,1740883839290,-500.0,0.000252,2]
[355055268,1740883839300,-397.5978368,0.000252,2]
[355055270,1740883839310,-500.0,0.000252,2]
[355055272,1740883839319,-500.0,0.000252,2]
[355055274,1740883839328,-500.0,0.000252,2]
[355055276,1740883839337,-901.55,0.000252,90]
[355055278,1740883839347,-1451.57,0.000252,2]
[355055280,1740883839358,-500.0,0.000252,2]
[355055281,1740883839368,-1265.4,0.000252,2]
[355055284,1740883839379,-500.0,0.000252,2]
[355055286,1740883839388,-500.0,0.000252,2]
[355055287,1740883839398,-500.0,0.000252,2]
[355055289,1740883839408,-500.0,0.000252,2]
[355055291,1740883839417,-1720.88,0.000252,2]
[355055293,1740883839427,-500.0,0.000252,2]
[355055295,1740883839436,-643.08,0.000252,2]
[355055297,1740883839446,-500.0,0.000252,2]
[355055314,1740883839600,-500.0,0.000252,2]
[355055316,1740883839610,-588.9712811,0.000252,2]
[355055318,1740883839621,-500.0,0.000252,2]
[355055320,1740883839631,-500.0,0.000252,2]
[355055322,1740883839640,-860.45,0.000252,2]
[355055324,1740883839650,-727.48,0.000252,2]
[355055326,1740883839660,-1484.26,0.000252,2]
[355055329,1740883839669,-1757.34,0.000252,2]
[355055331,1740883839678,-500.0,0.000252,2]
[355055333,1740883839687,-500.0,0.000252,2]
[355055335,1740883839697,-500.0,0.000252,2]
[355055337,1740883839707,-1806.18,0.000252,2]
[355055339,1740883839716,-500.0,0.000252,2]
[355055341,1740883839726,-500.0,0.000252,2]
[355055343,1740883839735,-1785.78,0.000252,2]
[355055345,1740883839745,-811.32,0.000252,2]
[355055347,1740883839755,-500.0,0.000252,2]
[355055349,1740883839764,-500.0,0.000252,2]
[355055351,1740883839773,-500.0,0.000252,2]
[355055353,1740883839783,-500.0,0.000252,2]
[355055355,1740883839792,-500.0,0.000252,2]
[355055357,1740883839802,-500.0,0.000252,2]
[355055359,1740883839811,-500.0,0.000252,2]
[355055361,1740883839822,-603.75,0.000252,2]
[355055363,1740883839831,-2321.24,0.000252,2]
[355055365,1740883839841,-500.0,0.000252,2]
[355055367,1740883839850,-500.0,0.000252,2]
[355055369,1740883839860,-500.0,0.000252,2]
[355055371,1740883839870,-500.0,0.000252,2]
[355055373,1740883839880,-564.84,0.000252,2]
[355055375,1740883839889,-586.92,0.000252,2]
[355055377,1740883839899,-500.0,0.000252,2]
[355055379,1740883839908,-2529.0,0.000252,2]
[355055381,1740883839918,-500.0,0.000252,2]
[355055383,1740883839927,-198.042416,0.000252,7]
[355055385,1740883839936,-151.0,0.000252,7]
[355055387,1740883839945,-638.41,0.000252,2]
[355055389,1740883839955,-154.898006,0.000252,7]
[355055391,1740883839965,-578.83522365,0.000252,2]
[355055393,1740883839974,-618.39,0.000252,2]
[355055395,1740883839983,-500.0,0.000252,2]
[355055396,1740883839993,-2793.3,0.000252,2]
[355055398,1740883840002,-500.0,0.000252,2]
[355055400,1740883840011,-1948.43,0.000252,2]
[355055402,1740883840020,-500.0,0.000252,2]
[355055404,1740883840030,-381.29312108,0.000252,2]
[355055406,1740883840040,-500.0,0.000252,2]
[355055408,1740883840050,-153.658219,0.000252,7]
[355055410,1740883840060,-1291.15,0.000252,2]
[355055412,1740883840070,-619.1,0.000252,2]
[355055414,1740883840081,-500.0,0.000252,2]
[355055416,1740883840090,-500.0,0.00025201,2]
[355055418,1740883840100,-151.0,0.00025201,7]
[355055420,1740883840110,-1059.62,0.00025201,2]
[355055422,1740883840120,-585.64,0.00025201,2]
[355055424,1740883840130,-880.22,0.00025201,2]
[355055426,1740883840140,-1832.27,0.00025201,2]
[355055428,1740883840149,-162.18373,0.00025201,7]
[355055430,1740883840158,-951.87,0.00025201,2]
[355055432,1740883840167,-1000.0,0.00025201,2]
[355055434,1740883840177,-1611.21,0.00025201,2]
[355055436,1740883840186,-1601.86,0.00025201,2]
[355055438,1740883840195,-500.0,0.00025201,2]
[355055440,1740883840205,-500.0,0.00025201,2]
[355055442,1740883840214,-1785.75,0.00025201,2]
[355055444,1740883840225,-716.08,0.00025201,2]
[355055446,1740883840235,-500.0,0.00025202,2]
[355055448,1740883840244,-500.0,0.00025203,2]
[355055450,1740883840254,-500.0,0.00025203,2]
[355055452,1740883840263,-151.79054,0.00025203,7]
[355055454,1740883840273,-151.0,0.00025203,7]
[355055456,1740883840282,-151.310655,0.00025203,7]
[355055458,1740883840292,-156.541242,0.00025203,7]
[355055460,1740883840301,-151.654793,0.00025204,7]
[355055462,1740883840310,-500.0,0.00025205,2]
[355055464,1740883840320,-500.0,0.00025205,2]
[355055466,1740883840329,-500.0,0.00025205,2]
[355055468,1740883840338,-500.0,0.00025205,2]
[355055470,1740883840349,-500.0,0.00025205,2]
[355055472,1740883840358,-500.0,0.00025205,2]
[355055474,1740883840367,-531.08546388,0.00025205,2]
[355055476,1740883840377,-500.0,0.00025205,2]
[355055478,1740883840386,-500.0,0.00025205,2]
[355055479,1740883840396,-500.0,0.00025205,2]
[355055481,1740883840405,-180.88405266,0.00025205,2]
[355055483,1740883840415,-500.0,0.00025205,2]
[355055485,1740883840424,-500.0,0.00025205,2]
[355055487,1740883840434,-500.0,0.00025205,2]
[355055489,1740883840444,-500.0,0.00025205,2]
[355055491,1740883840453,-500.0,0.00025205,2]
[355055493,1740883840463,-500.0,0.00025205,2]
[355055495,1740883840472,-500.0,0.00025205,2]
[355055497,1740883840483,-500.0,0.00025205,2]
[355055499,1740883840493,-500.0,0.00025205,2]
[355055501,1740883840507,-500.0,0.00025205,2]
[355055503,1740883840516,-500.0,0.00025205,2]
[355055505,1740883840526,-536.45,0.00025205,2]
[355055507,1740883840536,-500.0,0.00025205,2]
[355055509,1740883840546,-500.0,0.00025205,2]
[355055511,1740883840555,-500.0,0.00025205,2]
[355055513,1740883840564,-500.0,0.00025205,2]
[355055515,1740883840575,-500.0,0.00025205,2]
[355055517,1740883840585,-500.0,0.00025205,2]
[355055519,1740883840594,-385.82,0.00025205,2]
[355055520,1740883840605,-768.25,0.00025205,2]
[355055521,1740883840614,-500.0,0.00025205,2]
[355055522,1740883840623,-626.43,0.00025205,2]
[355055523,1740883840632,-500.0,0.00025205,2]
[355055524,1740883840641,-500.0,0.00025205,2]
[355055525,1740883840651,-500.0,0.00025205,2]
[355055526,1740883840663,-500.0,0.00025205,2]
[355055527,1740883840672,-500.0,0.00025205,2]
[355055528,1740883840682,-500.0,0.00025205,2]
[355055529,1740883840691,-500.0,0.00025205,2]
[355055530,1740883840701,-500.0,0.00025205,2]
[355055531,1740883840710,-500.0,0.00025205,2]
[355055532,1740883840719,-500.0,0.00025205,2]
[355055533,1740883840728,-500.0,0.00025205,2]
[355055534,1740883840737,-500.0,0.00025205,2]
[355055535,1740883840747,-500.0,0.00025205,2]
[355055536,1740883840756,-500.0,0.00025205,2]
[355055537,1740883840765,-1755.05,0.00025205,2]
[355055538,1740883840774,-780.24,0.00025205,2]
[355055539,1740883840783,-500.0,0.00025205,2]
[355055540,1740883840792,-500.0,0.00025205,2]
[355055541,1740883840801,-500.0,0.00025205,2]
[355055542,1740883840811,-500.0,0.00025205,2]
[355055543,1740883840820,-500.0,0.00025205,2]
[355055544,1740883840829,-500.0,0.00025205,2]
[355055545,1740883840838,-500.0,0.00025205,2]
[355055546,1740883840848,-500.0,0.00025205,2]
[355055548,1740883840859,-500.0,0.00025205,2]
[355055549,1740883840869,-500.0,0.00025205,2]
[355055551,1740883840878,-500.0,0.00025205,2]
[355055553,1740883840889,-500.0,0.00025205,2]
[355055555,1740883840899,-500.0,0.00025205,2]
[355055557,1740883840908,-500.0,0.00025205,2]
[355055559,1740883840917,-500.0,0.00025205,2]
[355055561,1740883840927,-642.19,0.00025205,2]
[355055563,1740883840937,-500.0,0.00025205,2]
[355055565,1740883840946,-500.0,0.00025205,2]
[355055567,1740883840956,-500.0,0.00025205,2]
[355055569,1740883840965,-547.959825,0.00025205,2]
[355055571,1740883840975,-500.0,0.00025205,2]
[355055573,1740883840984,-1915.73,0.00025205,2]
[355055575,1740883840993,-1449.41,0.00025205,2]
[355055577,1740883841003,-1627.488911,0.00025205,2]
[355055579,1740883841012,-500.0,0.00025205,2]
[355055581,1740883841021,-500.0,0.00025205,2]
[355055582,1740883841030,-500.0,0.00025205,2]
[355055584,1740883841040,-654.31,0.00025205,2]
[355055586,1740883841049,-500.0,0.00025205,2]
[355055588,1740883841058,-500.0,0.00025205,2]
[355055590,1740883841067,-500.0,0.00025205,2]
[355055592,1740883841077,-500.0,0.00025205,2]
[355055594,1740883841086,-500.0,0.00025205,2]
[355055596,1740883841095,-500.0,0.00025205,2]
[355055598,1740883841105,-1048.72,0.00025205,2]
[355055600,1740883841115,-500.0,0.00025205,2]
[355055602,1740883841125,-631.3000127,0.00025205,2]
[355055604,1740883841134,-732.04,0.00025205,2]
[355055606,1740883841143,-500.0,0.00025205,2]
[355055608,1740883841152,-500.0,0.00025205,2]
[355055610,1740883841162,-500.0,0.00025205,2]
[355055612,1740883841171,-500.0,0.00025205,2]
[355055614,1740883841180,-500.0,0.00025205,2]
[355055616,1740883841189,-500.0,0.00025205,2]
[355055618,1740883841199,-500.0,0.00025205,2]
[355055620,1740883841208,-2199.55,0.00025205,2]
[355055622,1740883841217,-500.0,0.00025205,2]
[355055624,1740883841227,-500.0,0.00025205,2]
[355055625,1740883841236,-1289.23,0.00025205,2]
[355055627,1740883841246,-500.0,0.00025205,2]
[355055629,1740883841256,-500.0,0.00025205,2]
[355055631,1740883841265,-500.0,0.00025205,2]
[355055633,1740883841274,-1747.14,0.00025205,2]
[355055635,1740883841284,-1838.6,0.00025205,2]
[355055637,1740883841294,-582.5,0.00025205,2]
[355055639,1740883841303,-500.0,0.00025205,2]
[355055641,1740883841313,-500.0,0.00025205,2]
[355055643,1740883841322,-2001.15,0.00025205,2]
[355055645,1740883841331,-579.4,0.00025205,2]
[355055647,1740883841340,-692.97,0.00025205,2]
[355055649,1740883841351,-2655.82,0.00025205,2]
[355055651,1740883841360,-2416.93,0.00025205,2]
[355055653,1740883841370,-500.0,0.00025205,2]
[355055655,1740883841379,-757.66,0.00025205,2]
[355055657,1740883841390,-2394.94,0.00025205,2]
[355055659,1740883841399,-1981.78,0.00025205,2]
[355055661,1740883841408,-1836.66,0.00025205,2]
[355055677,1740883841542,-500.0,0.00025205,2]
[355055679,1740883841571,-828.85,0.00025205,2]
[355055681,1740883841580,-500.0,0.00025205,2]
[355055683,1740883841592,-2378.8,0.00025205,2]
[355055685,1740883841602,-500.0,0.00025205,2]
[355055687,1740883841611,-500.0,0.00025205,2]
[355055689,1740883841622,-974.39,0.00025205,2]
[355055691,1740883841631,-500.0,0.00025205,2]
[355055694,1740883841641,-326.68907053,0.00025205,2]
[355055695,1740883841651,-500.0,0.00025205,2]
[355055697,1740883841660,-500.0,0.00025205,2]
[355055699,1740883841670,-500.0,0.00025205,2]
[355055701,1740883841679,-500.0,0.00025205,2]
[355055703,1740883841688,-602.86,0.00025205,2]
[355055705,1740883841698,-2100.87,0.00025205,2]
[355055707,1740883841708,-1266.67,0.00025205,2]
[355055709,1740883841718,-1574.18,0.00025205,2]
[355055711,1740883841728,-1518.41,0.00025205,2]
[355055713,1740883841738,-500.0,0.00025205,2]
[355055715,1740883841747,-500.0,0.00025205,2]
[355055717,1740883841756,-500.0,0.00025205,2]
[355055719,1740883841767,-563.7,0.00025205,2]
[355055721,1740883841776,-909.95,0.00025205,2]
[355055723,1740883841786,-856.54,0.00025205,2]
[355055725,1740883841796,-500.0,0.00025205,2]
[355055727,1740883841807,-500.0,0.00025205,2]
[355055729,1740883841817,-1341.98444352,0.00025224,2]
[355055731,1740883841827,-222.69,0.00025266,2]
[355055733,1740883841836,-429.08417609,0.00025374,2]
[355055735,1740883841846,-222.69,0.00025398,2]
[355055737,1740883841856,-922.94933212,0.0002541,2]
[355055739,1740883841866,-500.0,0.00025474,2]
[355055740,1740883841878,-500.0,0.00025474,2]
[355055742,1740883841888,-500.0,0.00025474,2]
[355055745,1740883841898,-500.0,0.00025474,2]
[355055746,1740883841907,-294.10932831,0.00025474,2]
[355055748,1740883841918,-500.0,0.00025474,2]
[355055750,1740883841928,-634.68635851,0.00025474,2]
[355055752,1740883841938,-453.57196102,0.00025474,2]
[355055755,1740883841948,-500.0,0.00025474,2]
[355055757,1740883841958,-500.0,0.00025474,2]
[355055759,1740883841968,-500.0,0.00025474,2]
[355055761,1740883841978,-1335.75,0.00025474,2]
[355055762,1740883841988,-500.0,0.00025474,2]
[355055765,1740883841998,-1911.89,0.00025474,2]
[355055766,1740883842007,-500.0,0.00025474,2]
[355055769,1740883842017,-500.0,0.00025474,2]
[355055771,1740883842027,-500.0,0.00025474,2]
[355055772,1740883842036,-500.0,0.00025474,2]
[355055774,1740883842046,-500.0,0.00025474,2]
[355055776,1740883842055,-500.0,0.00025474,2]
[355055778,1740883842065,-500.0,0.00025474,2]
[355055780,1740883842074,-500.0,0.00025474,2]
[355055782,1740883842084,-500.0,0.00025474,2]
[355055784,1740883842093,-500.0,0.00025474,2]
[355055786,1740883842103,-901.55,0.00025474,90]
[355055788,1740883842113,-1451.57,0.00025474,2]
[355055790,1740883842122,-500.0,0.00025474,2]
[355055792,1740883842132,-1265.4,0.00025474,2]
[355055794,1740883842141,-500.0,0.00025474,2]
[355055796,1740883842151,-500.0,0.00025474,2]
[355055798,1740883842160,-500.0,0.00025474,2]
[355055800,1740883842170,-500.0,0.00025474,2]
[355055802,1740883842180,-1720.88,0.00025474,2]
[355055804,1740883842190,-500.0,0.00025474,2]
[355055806,1740883842199,-643.08,0.00025474,2]
[355055808,1740883842209,-500.0,0.00025474,2]
[355055810,1740883842219,-500.0,0.00025474,2]
[355055812,1740883842229,-500.0,0.00025474,2]
[355055814,1740883842238,-500.0,0.00025474,2]
[355055816,1740883842247,-860.45,0.00025474,2]
[355055818,1740883842257,-727.48,0.00025474,2]
[355055820,1740883842266,-1484.26,0.00025474,2]
[355055822,1740883842276,-1757.34,0.00025474,2]
[355055824,1740883842286,-500.0,0.00025474,2]
[355055826,1740883842295,-500.0,0.00025474,2]
[355055828,1740883842306,-173.294915,0.00025474,7]
[355055830,1740883842315,-500.0,0.00025474,2]
[355055832,1740883842324,-1806.18,0.00025474,2]
[355055834,1740883842334,-500.0,0.00025474,2]
[355055836,1740883842342,-500.0,0.00025474,2]
[355055838,1740883842352,-1785.78,0.00025474,2]
[355055840,1740883842362,-811.32,0.00025474,2]
[355055842,1740883842371,-500.0,0.00025474,2]
[355055844,1740883842381,-500.0,0.00025474,2]
[355055846,1740883842391,-500.0,0.00025474,2]
[355055848,1740883842400,-500.0,0.00025474,2]
[355055851,1740883842423,-500.0,0.00025474,2]
[355055854,1740883842442,-500.0,0.00025474,2]
[355055857,1740883842457,-500.0,0.00025474,2]
[355055859,1740883842475,-603.75,0.00025474,2]
[355055864,1740883842495,-2321.24,0.00025474,2]
[355055869,1740883842514,-500.0,0.00025474,2]
[355055874,1740883842528,-500.0,0.00025474,2]
[355055879,1740883842543,-500.0,0.00025474,2]
[355055882,1740883842560,-500.0,0.00025474,2]
[355055885,1740883842580,-564.84,0.00025474,2]
[355055887,1740883842598,-586.92,0.00025474,2]
[355055890,1740883842615,-500.0,0.00025474,2]
[355055893,1740883842635,-2529.0,0.00025474,2]
[355055896,1740883842652,-500.0,0.00025474,2]
[355055898,1740883842667,-151.0,0.00025474,7]
[355055903,1740883842683,-638.41,0.00025474,2]
[355055908,1740883842701,-618.39,0.00025474,2]
[355055910,1740883842717,-500.0,0.00025474,2]
[355055915,1740883842732,-2793.3,0.00025474,2]
[355055919,1740883842745,-324.22738471,0.00025474,2]
[355055924,1740883842762,-1948.43,0.00025474,2]
[355055929,1740883842778,-500.0,0.00025474,2]
[355055931,1740883842791,-500.0,0.00025474,2]
[355055934,1740883842806,-1291.15,0.00025474,2]
[355055938,1740883842823,-619.1,0.00025474,2]
[355055940,1740883842836,-500.0,0.00025474,2]
[355055943,1740883842851,-500.0,0.00025475,2]
[355055945,1740883842866,-1059.62,0.00025475,2]
[355055948,1740883842881,-585.64,0.00025475,2]
[355055950,1740883842895,-880.22,0.00025475,2]
[355055952,1740883842908,-1832.27,0.00025475,2]
[355055955,1740883842922,-951.87,0.00025475,2]
[355055957,1740883842936,-1000.0,0.00025475,2]
[355055960,1740883842950,-1611.21,0.00025475,2]
[355055962,1740883842964,-1601.86,0.00025475,2]
[355055965,1740883842980,-500.0,0.00025475,2]
[355055967,1740883842995,-500.0,0.00025475,2]
[355055969,1740883843008,-1785.75,0.00025475,2]
[355055972,1740883843023,-716.08,0.00025475,2]
[355055974,1740883843036,-500.0,0.00025476,2]
[355055977,1740883843050,-500.0,0.00025477,2]
[355055979,1740883843064,-500.0,0.00025477,2]
[355055982,1740883843078,-216.683382,0.00025477,7]
[355055984,1740883843092,-500.0,0.00025479,2]
[355055987,1740883843108,-500.0,0.00025479,2]
[355055990,1740883843124,-500.0,0.00025479,2]
[355055992,1740883843139,-500.0,0.00025479,2]
[355055995,1740883843154,-500.0,0.00025479,2]
[355055997,1740883843169,-500.0,0.00025479,2]
[355056000,1740883843184,-500.0,0.00025479,2]
[355056002,1740883843199,-500.0,0.00025479,2]
[355056005,1740883843212,-500.0,0.00025479,2]
[355056007,1740883843227,-290.5563942,0.00025479,2]
[355056010,1740883843242,-500.0,0.00025479,2]
[355056012,1740883843256,-222.58391545,0.00025479,2]
[355056015,1740883843269,-500.0,0.00025479,2]
[355056017,1740883843283,-500.0,0.00025479,2]
[355056021,1740883843298,-500.0,0.00025479,2]
[355056025,1740883843312,-500.0,0.00025479,2]
[355056026,1740883843327,-500.0,0.00025479,2]
[355056027,1740883843341,-252.07501408,0.00025479,2]
[355056028,1740883843355,-500.0,0.00025479,2]
[355056029,1740883843368,-500.0,0.00025479,2]
[355056030,1740883843383,-536.45,0.00025479,2]
[355056033,1740883843396,-500.0,0.00025479,2]
[355056035,1740883843410,-500.0,0.00025479,2]
[355056038,1740883843425,-500.0,0.00025479,2]
[355056040,1740883843439,-500.0,0.00025479,2]
[355056043,1740883843452,-500.0,0.00025479,2]
[355056045,1740883843467,-500.0,0.00025479,2]
[355056048,1740883843481,-768.25,0.00025479,2]
[355056050,1740883843499,-528.42553831,0.00025479,2]
[355056053,1740883843515,-626.43,0.00025479,2]
[355056055,1740883843529,-500.0,0.00025479,2]